[Event "*** Titled Tuesday Blitz"]
[Site "Chess.com"]
[Date "2021.04.27"]
[Round "6"]
[White "chessajedrezz2020"]
[Black "Redbandit87"]
[Result "1-0"]
[WhiteElo "2679"]
[BlackElo "2379"]
[TimeControl "180+1"]
[EndTime "11:07:33 PDT"]
[Termination "chessajedrezz2020 won by resignation"]

1. Nf3 {[%clk 0:02:52.7]} 1... d5 {[%clk 0:02:57.1]} 2. d4 {[%clk 0:02:53]} 2...
e6 {[%clk 0:02:56.6]} 3. c4 {[%clk 0:02:52.6]} 3... c6 {[%clk 0:02:56.4]} 4. g3
{[%clk 0:02:47.6]} 4... f5 {[%clk 0:02:56.4]} 5. Bg2 {[%clk 0:02:48.1]} 5... Nf6
{[%clk 0:02:56.6]} 6. O-O {[%clk 0:02:49]} 6... Bd6 {[%clk 0:02:56.4]} 7. b3
{[%clk 0:02:49.9]} 7... Qe7 {[%clk 0:02:55.5]} 8. a4 {[%clk 0:02:49.6]} 8... O-O
{[%clk 0:02:53.3]} 9. Ba3 {[%clk 0:02:50.2]} 9... Nbd7 {[%clk 0:02:51.8]} 10.
Qc1 {[%clk 0:02:49.5]} 10... b6 {[%clk 0:02:47.9]} 11. Qf4 {[%clk 0:02:44.7]}
11... Bxa3 {[%clk 0:02:43.9]} 12. Nxa3 {[%clk 0:02:45.6]} 12... Ba6 {[%clk
0:02:36.1]} 13. Rfc1 {[%clk 0:02:36.1]} 13... Rac8 {[%clk 0:02:31.9]} 14. Ne5
{[%clk 0:02:12.5]} 14... Nxe5 {[%clk 0:02:26.6]} 15. Qxe5 {[%clk 0:02:12.7]}
15... Nd7 {[%clk 0:02:21.3]} 16. Qe3 {[%clk 0:02:12.2]} 16... g5 {[%clk
0:02:13.8]} 17. cxd5 {[%clk 0:02:11.6]} 17... cxd5 {[%clk 0:01:56.4]} 18. Rxc8
{[%clk 0:01:45.6]} 18... Bxc8 {[%clk 0:01:18]} 19. Bxd5 {[%clk 0:01:45.1]} 19...
Re8 {[%clk 0:01:06]} 20. Bg2 {[%clk 0:01:38.8]} 20... Qf6 {[%clk 0:00:52.9]} 21.
Nb5 {[%clk 0:01:33.8]} 21... e5 {[%clk 0:00:33.7]} 22. Nxa7 {[%clk 0:01:27.3]}
22... Ba6 {[%clk 0:00:26.8]} 23. Rd1 {[%clk 0:01:06.9]} 23... e4 {[%clk
0:00:25.8]} 24. f4 {[%clk 0:00:48.8]} 24... gxf4 {[%clk 0:00:20.1]} 25. gxf4
{[%clk 0:00:36.6]} 25... Ra8 {[%clk 0:00:18.2]} 26. Nb5 {[%clk 0:00:32.9]} 26...
Bxb5 {[%clk 0:00:18.4]} 27. axb5 {[%clk 0:00:33.6]} 27... Ra5 {[%clk 0:00:17.6]}
28. Qc3 {[%clk 0:00:32]} 28... Qd6 {[%clk 0:00:13.9]} 29. Qc6 {[%clk 0:00:26.3]}
29... Qe7 {[%clk 0:00:13.1]} 30. Qd5+ {[%clk 0:00:25.2]} 30... Qf7 {[%clk
0:00:12]} 31. Qc6 {[%clk 0:00:22.7]} 31... Ra3 {[%clk 0:00:10.9]} 32. Kh1 {[%clk
0:00:19.5]} 32... Rxb3 {[%clk 0:00:10.5]} 33. Rg1 {[%clk 0:00:20.2]} 33... Kf8
{[%clk 0:00:10.7]} 34. Qd6+ {[%clk 0:00:19.4]} 34... Ke8 {[%clk 0:00:11.1]} 35.
Rc1 {[%clk 0:00:15.8]} 35... Qe7 {[%clk 0:00:06.4]} 36. Rc8+ {[%clk 0:00:14.6]}
36... Kf7 {[%clk 0:00:06.8]} 37. Qd5+ {[%clk 0:00:13.1]} 37... Qe6 {[%clk
0:00:07.3]} 38. Qxe6+ {[%clk 0:00:11.9]} 38... Kxe6 {[%clk 0:00:08.1]} 39. Rc6+
{[%clk 0:00:12.1]} 39... Kd5 {[%clk 0:00:07.9]} 40. Rc7 {[%clk 0:00:12.3]} 40...
Rb1+ {[%clk 0:00:07.8]} 41. Bf1 {[%clk 0:00:12.4]} 41... Rxf1+ {[%clk
0:00:08.4]} 42. Kg2 {[%clk 0:00:13.3]} 42... Rxf4 {[%clk 0:00:08.8]} 43. Rxd7+
{[%clk 0:00:13.7]} 43... Kc4 {[%clk 0:00:09]} 44. d5 {[%clk 0:00:09.8]} 44...
Kxb5 {[%clk 0:00:08.8]} 45. Rc7 {[%clk 0:00:09.9]} 45... Rg4+ {[%clk 0:00:08.7]}
46. Kf2 {[%clk 0:00:10]} 46... Rg6 {[%clk 0:00:08.4]} 47. Ke3 {[%clk 0:00:10.4]}
47... Rd6 {[%clk 0:00:07.8]} 48. Kd4 {[%clk 0:00:10.9]} 48... f4 {[%clk
0:00:08]} 49. Rf7 {[%clk 0:00:10.8]} 49... f3 {[%clk 0:00:07.6]} 50. exf3 {[%clk
0:00:11.5]} 50... exf3 {[%clk 0:00:08.5]} 51. Rxf3 {[%clk 0:00:11.6]} 51... Ka4
{[%clk 0:00:09.1]} 52. Ke5 {[%clk 0:00:10.5]} 52... Rd8 {[%clk 0:00:09.4]} 53.
d6 {[%clk 0:00:10.9]} 53... b5 {[%clk 0:00:09.8]} 54. Ke6 {[%clk 0:00:11.1]}
54... b4 {[%clk 0:00:10.2]} 55. d7 {[%clk 0:00:11.5]} 55... Rb8 {[%clk
0:00:10.6]} 56. Ke7 {[%clk 0:00:09.6]} 56... b3 {[%clk 0:00:11.2]} 57. d8=Q
{[%clk 0:00:09.8]} 57... Rxd8 {[%clk 0:00:10.9]} 58. Kxd8 {[%clk 0:00:10.7]}
58... b2 {[%clk 0:00:11.8]} 59. Rf1 {[%clk 0:00:10.2]} 59... Kb3 {[%clk
0:00:12.2]} 60. Ke7 {[%clk 0:00:09.9]} 60... Kc2 {[%clk 0:00:12.9]} 61. h4
{[%clk 0:00:09.9]} 61... b1=Q {[%clk 0:00:13.8]} 62. Rxb1 {[%clk 0:00:09.4]}
62... Kxb1 {[%clk 0:00:14.7]} 63. h5 {[%clk 0:00:10.1]} 63... Kc2 {[%clk
0:00:14.7]} 64. h6 {[%clk 0:00:10.7]} 64... Kd3 {[%clk 0:00:15.6]} 65. Kf7
{[%clk 0:00:11.3]} 65... Ke4 {[%clk 0:00:16.5]} 66. Kg7 {[%clk 0:00:11.9]} 66...
Ke5 {[%clk 0:00:17.4]} 67. Kxh7 {[%clk 0:00:12.5]} 67... Kf6 {[%clk 0:00:18.1]}
68. Kg8 {[%clk 0:00:13]} 68... Kg6 {[%clk 0:00:19]} 69. h7 {[%clk 0:00:13.9]}
69... Kf6 {[%clk 0:00:19.4]} 70. h8=Q+ {[%clk 0:00:14.1]} 70... Kf5 {[%clk
0:00:20.3]} 71. Qg7 {[%clk 0:00:14.7]} 1-0

[Event "*** Titled Tuesday Blitz"]
[Site "Chess.com"]
[Date "2021.04.27"]
[Round "6"]
[White "chesslh19"]
[Black "lacafi"]
[Result "1-0"]
[WhiteElo "2264"]
[BlackElo "2160"]
[TimeControl "180+1"]
[EndTime "11:07:36 PDT"]
[Termination "chesslh19 won on time"]

1. e4 {[%clk 0:03:00.9]} 1... c6 {[%clk 0:03:00]} 2. d4 {[%clk 0:03:00.6]} 2...
d5 {[%clk 0:03:00.9]} 3. Nd2 {[%clk 0:03:00.8]} 3... dxe4 {[%clk 0:03:01.2]} 4.
Nxe4 {[%clk 0:03:01.7]} 4... Nf6 {[%clk 0:03:01.9]} 5. Nxf6+ {[%clk 0:03:01.8]}
5... exf6 {[%clk 0:03:02.8]} 6. Bc4 {[%clk 0:03:01.9]} 6... Bd6 {[%clk
0:03:03.4]} 7. Qe2+ {[%clk 0:03:01.6]} 7... Qe7 {[%clk 0:03:03]} 8. Qxe7+ {[%clk
0:03:00.7]} 8... Bxe7 {[%clk 0:03:03.9]} 9. Bf4 {[%clk 0:02:59.5]} 9... O-O
{[%clk 0:03:04]} 10. O-O-O {[%clk 0:02:54.2]} 10... Nd7 {[%clk 0:02:58.9]} 11.
d5 {[%clk 0:02:37.5]} 11... cxd5 {[%clk 0:02:52.2]} 12. Bxd5 {[%clk 0:02:37.1]}
12... Nb6 {[%clk 0:02:43.1]} 13. Bb3 {[%clk 0:02:36.7]} 13... Bc5 {[%clk
0:02:40.3]} 14. Bd6 {[%clk 0:02:29]} 14... Bxd6 {[%clk 0:02:28.2]} 15. Rxd6
{[%clk 0:02:29.9]} 15... Bf5 {[%clk 0:02:19.5]} 16. Nf3 {[%clk 0:02:15.9]} 16...
Bg4 {[%clk 0:02:11.8]} 17. Re1 {[%clk 0:01:58]} 17... Rfd8 {[%clk 0:02:06]} 18.
Rxd8+ {[%clk 0:01:50]} 18... Rxd8 {[%clk 0:02:05.5]} 19. Re7 {[%clk 0:01:48.9]}
19... Nd7 {[%clk 0:01:29.4]} 20. Rxf7 {[%clk 0:01:38.4]} 20... Nc5 {[%clk
0:01:09.7]} 21. Rxb7+ {[%clk 0:01:25.2]} 21... Nxb3+ {[%clk 0:01:05.4]} 22. axb3
{[%clk 0:01:21.2]} 22... a6 {[%clk 0:00:58.5]} 23. Rb6 {[%clk 0:01:18]} 23...
Re8 {[%clk 0:00:56.5]} 24. Kd2 {[%clk 0:01:12]} 24... Rd8+ {[%clk 0:00:53.3]}
25. Ke2 {[%clk 0:01:01]} 25... Re8+ {[%clk 0:00:50.3]} 26. Kf1 {[%clk
0:00:57.3]} 26... Rc8 {[%clk 0:00:47.4]} 27. c3 {[%clk 0:00:49.5]} 27... Ra8
{[%clk 0:00:34.3]} 28. Nd4 {[%clk 0:00:46.8]} 28... a5 {[%clk 0:00:31.5]} 29. h3
{[%clk 0:00:46.3]} 29... Bd7 {[%clk 0:00:28.4]} 30. Rd6 {[%clk 0:00:46.2]} 30...
Be8 {[%clk 0:00:27.2]} 31. g4 {[%clk 0:00:36.5]} 31... Bf7 {[%clk 0:00:23.9]}
32. Nc6 {[%clk 0:00:20]} 32... Bxb3 {[%clk 0:00:19.9]} 33. Rd8+ {[%clk
0:00:19.9]} 33... Rxd8 {[%clk 0:00:19]} 34. Nxd8 {[%clk 0:00:20.8]} 34... Kf8
{[%clk 0:00:18.6]} 35. Nc6 {[%clk 0:00:19.4]} 35... a4 {[%clk 0:00:17.4]} 36.
Nd4 {[%clk 0:00:19.6]} 36... Bc4+ {[%clk 0:00:16.4]} 37. Ke1 {[%clk 0:00:19.7]}
37... Ke7 {[%clk 0:00:16.9]} 38. Kd2 {[%clk 0:00:19.9]} 38... g6 {[%clk
0:00:17.1]} 39. Ke3 {[%clk 0:00:19.7]} 39... Kd6 {[%clk 0:00:17.1]} 40. f4
{[%clk 0:00:19.4]} 40... Bf7 {[%clk 0:00:12.8]} 41. Kd3 {[%clk 0:00:15.7]} 41...
h5 {[%clk 0:00:12.5]} 42. Nf3 {[%clk 0:00:07.6]} 42... hxg4 {[%clk 0:00:11.4]}
43. hxg4 {[%clk 0:00:08.5]} 43... Be8 {[%clk 0:00:11.7]} 44. g5 {[%clk
0:00:08.4]} 44... fxg5 {[%clk 0:00:10.2]} 45. Nxg5 {[%clk 0:00:08.2]} 45... Bb5+
{[%clk 0:00:04.8]} 46. Kd4 {[%clk 0:00:08]} 46... Bc6 {[%clk 0:00:04.8]} 47.
Ne4+ {[%clk 0:00:07.9]} 47... Ke6 {[%clk 0:00:03.3]} 48. Nc5+ {[%clk 0:00:08.1]}
48... Kf5 {[%clk 0:00:03.8]} 49. Ke3 {[%clk 0:00:07.7]} 49... Be8 {[%clk
0:00:03.5]} 50. Nd3 {[%clk 0:00:07.3]} 50... Bb5 {[%clk 0:00:03.3]} 51. Nc5
{[%clk 0:00:07.1]} 51... Be8 {[%clk 0:00:03.1]} 52. Ne4 {[%clk 0:00:07]} 52...
Bd7 {[%clk 0:00:02.4]} 53. Nd6+ {[%clk 0:00:06.9]} 53... Ke6 {[%clk 0:00:02.9]}
54. Nc4 {[%clk 0:00:06.7]} 54... Kf5 {[%clk 0:00:03.4]} 55. Nb6 {[%clk
0:00:05.8]} 55... Bc6 {[%clk 0:00:03.3]} 56. Nc4 {[%clk 0:00:05.6]} 56... Bb5
{[%clk 0:00:03.2]} 57. Nd2 {[%clk 0:00:06]} 57... Bd7 {[%clk 0:00:03.2]} 58. c4
{[%clk 0:00:06.4]} 58... Be8 {[%clk 0:00:03.2]} 59. Nf3 {[%clk 0:00:05.5]} 59...
Bc6 {[%clk 0:00:02.4]} 60. Nd4+ {[%clk 0:00:05.6]} 1-0

[Event "*** Titled Tuesday Blitz"]
[Site "Chess.com"]
[Date "2021.04.27"]
[Round "6"]
[White "Gloomy_Wanderer"]
[Black "Andreikka"]
[Result "1/2-1/2"]
[WhiteElo "2734"]
[BlackElo "2880"]
[TimeControl "180+1"]
[EndTime "11:07:37 PDT"]
[Termination "Game drawn by agreement"]

1. d4 {[%clk 0:03:00.9]} 1... d5 {[%clk 0:02:58]} 2. c4 {[%clk 0:03:00.9]} 2...
dxc4 {[%clk 0:02:58.9]} 3. Qa4+ {[%clk 0:02:59]} 3... Nc6 {[%clk 0:02:55.6]} 4.
Nf3 {[%clk 0:02:59]} 4... e5 {[%clk 0:02:27.6]} 5. dxe5 {[%clk 0:02:33.7]} 5...
Be6 {[%clk 0:02:17.1]} 6. Ng5 {[%clk 0:02:11.3]} 6... Bb4+ {[%clk 0:02:13.5]} 7.
Nc3 {[%clk 0:02:04.4]} 7... a6 {[%clk 0:01:47.8]} 8. Nxe6 {[%clk 0:01:56]} 8...
fxe6 {[%clk 0:01:48.7]} 9. a3 {[%clk 0:01:40]} 9... b5 {[%clk 0:01:43.4]} 10.
Qc2 {[%clk 0:01:38.8]} 10... Nd4 {[%clk 0:01:36.2]} 11. Qe4 {[%clk 0:01:38.6]}
11... Ba5 {[%clk 0:01:34.5]} 12. Be3 {[%clk 0:01:32.7]} 12... c5 {[%clk
0:01:32.1]} 13. O-O-O {[%clk 0:01:24.5]} 13... Bb6 {[%clk 0:01:25.9]} 14. g3
{[%clk 0:01:15.4]} 14... Ne7 {[%clk 0:01:22.8]} 15. Bh3 {[%clk 0:01:12.5]} 15...
Qb8 {[%clk 0:01:05.8]} 16. Bg5 {[%clk 0:01:04.3]} 16... Ra7 {[%clk 0:00:54.2]}
17. e3 {[%clk 0:00:57.7]} 17... Ndf5 {[%clk 0:00:54.6]} 18. Bxe7 {[%clk
0:00:55.5]} 18... Rxe7 {[%clk 0:00:55.5]} 19. Bxf5 {[%clk 0:00:51.6]} 19... exf5
{[%clk 0:00:56.4]} 20. Qxf5 {[%clk 0:00:51.2]} 20... Rxe5 {[%clk 0:00:43.1]} 21.
Qd7+ {[%clk 0:00:50.9]} 21... Kf8 {[%clk 0:00:44]} 22. Rd5 {[%clk 0:00:42.6]}
22... b4 {[%clk 0:00:37]} 23. Rxe5 {[%clk 0:00:30.3]} 23... Qxe5 {[%clk
0:00:37.9]} 24. Qc8+ {[%clk 0:00:30.8]} 24... Kf7 {[%clk 0:00:32]} 25. Qb7+
{[%clk 0:00:23.1]} 25... Qc7 {[%clk 0:00:16.8]} 26. Qd5+ {[%clk 0:00:23.3]}
26... Kf8 {[%clk 0:00:13.9]} 27. Ne4 {[%clk 0:00:21.8]} 27... bxa3 {[%clk
0:00:12]} 28. Ng5 {[%clk 0:00:18.9]} 28... Qe7 {[%clk 0:00:05.5]} 29. Ne6+
{[%clk 0:00:17.8]} 29... Kf7 {[%clk 0:00:06]} 30. Nd4+ {[%clk 0:00:12]} 30...
Ke8 {[%clk 0:00:05.6]} 31. Nf5 {[%clk 0:00:11.7]} 31... Qd7 {[%clk 0:00:06.1]}
32. Qe5+ {[%clk 0:00:11]} 32... Kf8 {[%clk 0:00:06.2]} 33. bxa3 {[%clk
0:00:08.4]} 33... Bc7 {[%clk 0:00:03.1]} 34. Qxc5+ {[%clk 0:00:08.3]} 34... Kf7
{[%clk 0:00:02.3]} 35. Rd1 {[%clk 0:00:08.8]} 35... Qc8 {[%clk 0:00:02.5]} 36.
Qxc4+ {[%clk 0:00:07.4]} 36... Kf6 {[%clk 0:00:03.1]} 37. Nd4 {[%clk 0:00:06.3]}
37... Be5 {[%clk 0:00:02.9]} 38. Qxc8 {[%clk 0:00:05.5]} 38... Rxc8+ {[%clk
0:00:03.8]} 39. Kd2 {[%clk 0:00:05.7]} 39... Rc4 {[%clk 0:00:03.5]} 40. Kd3
{[%clk 0:00:05.6]} 40... Ra4 {[%clk 0:00:04.2]} 41. Nc2 {[%clk 0:00:06.1]} 41...
g5 {[%clk 0:00:03.9]} 42. h3 {[%clk 0:00:05.7]} 42... h5 {[%clk 0:00:03.8]} 43.
Rb1 {[%clk 0:00:05.8]} 43... Bd6 {[%clk 0:00:04]} 44. Rb6 {[%clk 0:00:05.4]}
44... Ke7 {[%clk 0:00:04.3]} 45. Rb3 {[%clk 0:00:05.5]} 45... g4 {[%clk
0:00:03.2]} 46. hxg4 {[%clk 0:00:06.4]} 46... hxg4 {[%clk 0:00:03.8]} 47. e4
{[%clk 0:00:05.8]} 47... Kf6 {[%clk 0:00:03.7]} 48. Ne3 {[%clk 0:00:05.5]} 48...
Kg5 {[%clk 0:00:02.2]} 49. Nc4 {[%clk 0:00:04.9]} 49... Bc5 {[%clk 0:00:02.8]}
50. e5 {[%clk 0:00:03.8]} 50... Bxf2 {[%clk 0:00:02.7]} 51. e6 {[%clk
0:00:03.9]} 51... Kf6 {[%clk 0:00:03.2]} 52. Rb8 {[%clk 0:00:02.8]} 52... Bxg3
{[%clk 0:00:02.4]} 53. Rg8 {[%clk 0:00:02]} 53... Kxe6 {[%clk 0:00:02]} 54. Rxg4
{[%clk 0:00:02.2]} 54... Bc7 {[%clk 0:00:02.9]} 55. Re4+ {[%clk 0:00:02]}
1/2-1/2

[Event "*** Titled Tuesday Blitz"]
[Site "Chess.com"]
[Date "2021.04.27"]
[Round "6"]
[White "MikeSailer"]
[Black "fyall777"]
[Result "1/2-1/2"]
[WhiteElo "2190"]
[BlackElo "2407"]
[TimeControl "180+1"]
[EndTime "11:07:39 PDT"]
[Termination "Game drawn by agreement"]

1. d4 {[%clk 0:03:00.2]} 1... Nf6 {[%clk 0:02:03.8]} 2. Nf3 {[%clk 0:02:58.6]}
2... g6 {[%clk 0:02:04.3]} 3. Bf4 {[%clk 0:02:58.8]} 3... Bg7 {[%clk 0:02:04.5]}
4. e3 {[%clk 0:02:59.6]} 4... d6 {[%clk 0:02:04.2]} 5. Be2 {[%clk 0:03:00.1]}
5... c5 {[%clk 0:02:03.6]} 6. O-O {[%clk 0:02:59.3]} 6... Nbd7 {[%clk
0:02:03.7]} 7. h3 {[%clk 0:02:58.6]} 7... O-O {[%clk 0:02:03.9]} 8. c4 {[%clk
0:02:59.2]} 8... b6 {[%clk 0:02:04]} 9. Nc3 {[%clk 0:02:59.7]} 9... Bb7 {[%clk
0:02:03.8]} 10. a4 {[%clk 0:03:00.2]} 10... Re8 {[%clk 0:02:01.1]} 11. a5 {[%clk
0:03:00.6]} 11... e5 {[%clk 0:01:58.4]} 12. Bh2 {[%clk 0:03:00.8]} 12... Ne4
{[%clk 0:01:44.9]} 13. Nxe4 {[%clk 0:02:42.5]} 13... Bxe4 {[%clk 0:01:41.4]} 14.
dxe5 {[%clk 0:02:33.8]} 14... Nxe5 {[%clk 0:01:34.6]} 15. Nxe5 {[%clk
0:02:34.1]} 15... dxe5 {[%clk 0:01:32]} 16. Bf3 {[%clk 0:02:11]} 16... Bxf3
{[%clk 0:01:22.4]} 17. Qxf3 {[%clk 0:02:09.2]} 17... e4 {[%clk 0:01:22.6]} 18.
Qe2 {[%clk 0:01:59.6]} 18... Qd3 {[%clk 0:01:21.3]} 19. Qxd3 {[%clk 0:01:46.5]}
19... exd3 {[%clk 0:01:19.9]} 20. Ra2 {[%clk 0:01:39.2]} 20... Rad8 {[%clk
0:01:00.7]} 21. Rd1 {[%clk 0:01:37.6]} 21... Re4 {[%clk 0:00:56.4]} 22. b3
{[%clk 0:01:31.5]} 22... Re6 {[%clk 0:00:43.2]} 23. Bc7 {[%clk 0:01:24]} 23...
Rd7 {[%clk 0:00:42.8]} 24. axb6 {[%clk 0:01:24.3]} 24... axb6 {[%clk 0:00:42.8]}
25. Ra8+ {[%clk 0:01:19.4]} 25... Bf8 {[%clk 0:00:42.8]} 26. Bf4 {[%clk
0:01:16.7]} 26... Kg7 {[%clk 0:00:42.7]} 27. Kf1 {[%clk 0:01:10.7]} 27... Be7
{[%clk 0:00:37]} 28. Ke1 {[%clk 0:00:55]} 28... b5 {[%clk 0:00:26.1]} 29. Kd2
{[%clk 0:00:49.8]} 29... bxc4 {[%clk 0:00:21.5]} 30. bxc4 {[%clk 0:00:49.2]}
30... Rb6 {[%clk 0:00:21.5]} 31. Ra2 {[%clk 0:00:48.8]} 31... Bf6 {[%clk
0:00:19.2]} 32. Rc1 {[%clk 0:00:43.3]} 32... Rb3 {[%clk 0:00:17.4]} 33. g4
{[%clk 0:00:41.2]} 33... g5 {[%clk 0:00:17.6]} 34. Bg3 {[%clk 0:00:39.9]} 34...
h5 {[%clk 0:00:16.6]} 35. gxh5 {[%clk 0:00:40]} 35... Kh6 {[%clk 0:00:16.3]} 36.
f4 {[%clk 0:00:32.8]} 36... Kxh5 {[%clk 0:00:16.2]} 37. fxg5 {[%clk 0:00:32.9]}
37... Bxg5 {[%clk 0:00:16.4]} 38. Bf4 {[%clk 0:00:33.6]} 38... Bxf4 {[%clk
0:00:15.6]} 39. exf4 {[%clk 0:00:33.9]} 39... Re7 {[%clk 0:00:15.4]} 40. Re1
{[%clk 0:00:27.4]} 40... Rxe1 {[%clk 0:00:14.3]} 41. Kxe1 {[%clk 0:00:27.8]}
41... Rc3 {[%clk 0:00:13.8]} 42. Kd2 {[%clk 0:00:24]} 42... Rxc4 {[%clk
0:00:12.7]} 43. Kxd3 {[%clk 0:00:24.4]} 43... Rxf4 {[%clk 0:00:12.7]} 44. Ke3
{[%clk 0:00:20.8]} 44... Rh4 {[%clk 0:00:11.8]} 45. Rh2 {[%clk 0:00:15.4]} 45...
c4 {[%clk 0:00:11.2]} 46. Rh1 {[%clk 0:00:13.1]} 46... f5 {[%clk 0:00:09.4]} 47.
Rh2 {[%clk 0:00:13.3]} 47... Re4+ {[%clk 0:00:06.2]} 48. Kf3 {[%clk 0:00:12.2]}
48... Kh4 {[%clk 0:00:06.4]} 49. Rh1 {[%clk 0:00:10.5]} 49... c3 {[%clk
0:00:05.5]} 50. Rh2 {[%clk 0:00:09.7]} 50... Rc4 {[%clk 0:00:05.7]} 51. Rc2
{[%clk 0:00:08.7]} 51... Kxh3 {[%clk 0:00:05]} 52. Ke3 {[%clk 0:00:08.4]} 52...
f4+ {[%clk 0:00:05.1]} 53. Kf3 {[%clk 0:00:08.6]} 53... Rd4 {[%clk 0:00:02.9]}
54. Rxc3 {[%clk 0:00:08.2]} 54... Kh4 {[%clk 0:00:02.7]} 1/2-1/2

[Event "*** Titled Tuesday Blitz"]
[Site "Chess.com"]
[Date "2021.04.27"]
[Round "6"]
[White "GMJustin"]
[Black "gonzaga23"]
[Result "1-0"]
[WhiteElo "2309"]
[BlackElo "2465"]
[TimeControl "180+1"]
[EndTime "11:07:43 PDT"]
[Termination "GMJustin won by resignation"]

1. e4 {[%clk 0:02:51]} 1... c6 {[%clk 0:03:00.1]} 2. d4 {[%clk 0:02:50.5]} 2...
d5 {[%clk 0:03:01]} 3. e5 {[%clk 0:02:50.5]} 3... Bf5 {[%clk 0:03:01]} 4. Be3
{[%clk 0:02:34.1]} 4... e6 {[%clk 0:02:57.8]} 5. Nd2 {[%clk 0:02:33.4]} 5... Nd7
{[%clk 0:02:58.3]} 6. c3 {[%clk 0:02:31.2]} 6... c5 {[%clk 0:02:58.4]} 7. f4
{[%clk 0:02:19.9]} 7... cxd4 {[%clk 0:02:57.8]} 8. cxd4 {[%clk 0:02:19.1]} 8...
Bb4 {[%clk 0:02:57.3]} 9. Nf3 {[%clk 0:02:15.2]} 9... Ne7 {[%clk 0:02:56.9]} 10.
Be2 {[%clk 0:02:13.4]} 10... Bg4 {[%clk 0:02:42.4]} 11. O-O {[%clk 0:02:08]}
11... Nf5 {[%clk 0:02:42.4]} 12. Bf2 {[%clk 0:02:08.1]} 12... Bxd2 {[%clk
0:02:35.1]} 13. Qxd2 {[%clk 0:02:07.2]} 13... Qb6 {[%clk 0:02:33.1]} 14. h3
{[%clk 0:01:56.2]} 14... Bxf3 {[%clk 0:02:29.6]} 15. Bxf3 {[%clk 0:01:57.1]}
15... h5 {[%clk 0:02:28.6]} 16. g3 {[%clk 0:01:52.4]} 16... Rc8 {[%clk
0:02:21.2]} 17. Rac1 {[%clk 0:01:47.5]} 17... Ke7 {[%clk 0:02:21.6]} 18. Kg2
{[%clk 0:01:44.5]} 18... g6 {[%clk 0:02:15.8]} 19. Rxc8 {[%clk 0:01:39.3]} 19...
Rxc8 {[%clk 0:02:15.3]} 20. g4 {[%clk 0:01:38.8]} 20... hxg4 {[%clk 0:01:43.8]}
21. hxg4 {[%clk 0:01:39.7]} 21... Ng7 {[%clk 0:01:30.6]} 22. Bh4+ {[%clk
0:01:31.8]} 22... f6 {[%clk 0:01:28.1]} 23. exf6+ {[%clk 0:01:12.8]} 23... Nxf6
{[%clk 0:01:28.5]} 24. f5 {[%clk 0:01:11.1]} 24... Rh8 {[%clk 0:00:56.4]} 25.
Qg5 {[%clk 0:00:25.3]} 25... Qxd4 {[%clk 0:00:45.5]} 26. fxe6 {[%clk 0:00:15.2]}
26... Nxe6 {[%clk 0:00:39.3]} 27. Qxf6+ {[%clk 0:00:12.6]} 27... Qxf6 {[%clk
0:00:40.2]} 28. Bxf6+ {[%clk 0:00:12.3]} 28... Kxf6 {[%clk 0:00:36.8]} 29. Bxd5+
{[%clk 0:00:12.2]} 29... Ke5 {[%clk 0:00:37.6]} 30. Bxb7 {[%clk 0:00:09]} 30...
Nf4+ {[%clk 0:00:37]} 31. Kg1 {[%clk 0:00:05]} 31... Rb8 {[%clk 0:00:36]} 32.
Re1+ {[%clk 0:00:03.8]} 32... Kf6 {[%clk 0:00:35.4]} 33. g5+ {[%clk 0:00:03.1]}
33... Kxg5 {[%clk 0:00:35]} 34. Re7 {[%clk 0:00:03]} 34... Rd8 {[%clk 0:00:30]}
35. b4 {[%clk 0:00:01.7]} 35... Rd1+ {[%clk 0:00:27.3]} 36. Kf2 {[%clk
0:00:02.1]} 36... Rd2+ {[%clk 0:00:28.2]} 37. Kf3 {[%clk 0:00:01.9]} 37... Nd3
{[%clk 0:00:16.4]} 38. Ke3 {[%clk 0:00:01.7]} 38... Rd1 {[%clk 0:00:16.4]} 39.
Rd7 {[%clk 0:00:01.9]} 39... Nb2 {[%clk 0:00:13]} 40. Rxd1 {[%clk 0:00:01.3]}
40... Nxd1+ {[%clk 0:00:13.9]} 41. Kd4 {[%clk 0:00:01.6]} 41... Kf4 {[%clk
0:00:12.5]} 42. b5 {[%clk 0:00:01.9]} 42... g5 {[%clk 0:00:10.4]} 43. a4 {[%clk
0:00:02.1]} 43... Nf2 {[%clk 0:00:03.1]} 44. a5 {[%clk 0:00:02.2]} 44... Ng4
{[%clk 0:00:04]} 45. b6 {[%clk 0:00:02]} 45... axb6 {[%clk 0:00:04.9]} 46. a6
{[%clk 0:00:02.4]} 46... Ne5 {[%clk 0:00:04.3]} 47. a7 {[%clk 0:00:02.1]} 47...
g4 {[%clk 0:00:05.1]} 48. a8=Q {[%clk 0:00:01.6]} 48... g3 {[%clk 0:00:06]} 49.
Bg2 {[%clk 0:00:01.4]} 49... Ng4 {[%clk 0:00:05.8]} 50. Qf8+ {[%clk 0:00:01.5]}
50... Kg5 {[%clk 0:00:06]} 51. Kd3 {[%clk 0:00:02]} 51... Kh4 {[%clk 0:00:06.9]}
52. Kd2 {[%clk 0:00:02.4]} 52... Nf2 {[%clk 0:00:07.4]} 53. Qh8+ {[%clk
0:00:02.7]} 53... Kg4 {[%clk 0:00:07.7]} 54. Qg7+ {[%clk 0:00:03.4]} 54... Kf4
{[%clk 0:00:08.6]} 55. Ke2 {[%clk 0:00:03.8]} 55... Ng4 {[%clk 0:00:08.6]} 56.
Qf7+ {[%clk 0:00:03.8]} 56... Kg5 {[%clk 0:00:09.1]} 57. Qf3 {[%clk 0:00:03.7]}
57... Kh4 {[%clk 0:00:08.7]} 58. Qf4 {[%clk 0:00:04.2]} 58... b5 {[%clk
0:00:07.4]} 59. Kf3 {[%clk 0:00:03.9]} 59... Kh5 {[%clk 0:00:05.1]} 60. Qxg4+
{[%clk 0:00:04.3]} 1-0